[Event "*** SCC Grand Prix: Titled Tuesday Blitz"]
[Site "Chess.com"]
[Date "2020.09.29"]
[Round "9"]
[White "bratkoo"]
[Black "ajgreen"]
[Result "0-1"]
[WhiteElo "2523"]
[BlackElo "2401"]
[TimeControl "180+1"]
[EndTime "11:44:40 PDT"]
[Termination "ajgreen won by checkmate"]

1. b4 {[%clk 0:03:00.9]} 1... c6 {[%clk 0:02:56.7]} 2. e4 {[%clk 0:02:59.3]}
2... d5 {[%clk 0:02:42.1]} 3. exd5 {[%clk 0:02:58.7]} 3... cxd5 {[%clk
0:02:41.5]} 4. Nf3 {[%clk 0:02:58.3]} 4... Nf6 {[%clk 0:02:40.9]} 5. Bb2 {[%clk
0:02:57.7]} 5... e6 {[%clk 0:02:40.9]} 6. a3 {[%clk 0:02:55.9]} 6... a5 {[%clk
0:02:39.2]} 7. b5 {[%clk 0:02:55.6]} 7... Nbd7 {[%clk 0:02:35.3]} 8. d4 {[%clk
0:02:51.6]} 8... Nb6 {[%clk 0:02:31.6]} 9. Nbd2 {[%clk 0:02:51.6]} 9... Bd7
{[%clk 0:02:31.2]} 10. c4 {[%clk 0:02:45.4]} 10... dxc4 {[%clk 0:02:30.6]} 11.
Nxc4 {[%clk 0:02:45.8]} 11... Nxc4 {[%clk 0:02:30.6]} 12. Bxc4 {[%clk
0:02:45.3]} 12... Rc8 {[%clk 0:02:30.4]} 13. Qe2 {[%clk 0:02:43.3]} 13... Be7
{[%clk 0:02:28.8]} 14. O-O {[%clk 0:02:42.8]} 14... O-O {[%clk 0:02:28.4]} 15.
Rfc1 {[%clk 0:02:42.6]} 15... Nd5 {[%clk 0:02:27.2]} 16. Ne5 {[%clk 0:02:42.8]}
16... Be8 {[%clk 0:02:24.4]} 17. g3 {[%clk 0:02:39.5]} 17... Bf6 {[%clk
0:02:22.8]} 18. Bd3 {[%clk 0:02:39.4]} 18... Rxc1+ {[%clk 0:02:21.8]} 19. Rxc1
{[%clk 0:02:39]} 19... a4 {[%clk 0:02:20]} 20. Ng4 {[%clk 0:02:33.1]} 20... Be7
{[%clk 0:02:16.9]} 21. Qe4 {[%clk 0:02:30.6]} 21... g6 {[%clk 0:02:12]} 22. Qe5
{[%clk 0:02:26.8]} 22... f6 {[%clk 0:01:54.7]} 23. Qxe6+ {[%clk 0:02:23.2]}
23... Kg7 {[%clk 0:01:53.2]} 24. Qe2 {[%clk 0:01:56.8]} 24... h5 {[%clk
0:01:48.6]} 25. Ne3 {[%clk 0:01:56.4]} 25... Bf7 {[%clk 0:01:47.2]} 26. Be4
{[%clk 0:01:50.5]} 26... Re8 {[%clk 0:01:41.5]} 27. Bxd5 {[%clk 0:01:43.9]}
27... Bxd5 {[%clk 0:01:40.9]} 28. Nxd5 {[%clk 0:01:44.8]} 28... Qxd5 {[%clk
0:01:40.8]} 29. Rc7 {[%clk 0:01:45.5]} 29... Qf7 {[%clk 0:01:40.5]} 30. Rxb7
{[%clk 0:01:44.8]} 30... Kf8 {[%clk 0:01:38.6]} 31. Qc2 {[%clk 0:01:37.9]} 31...
f5 {[%clk 0:01:34.1]} 32. Qxa4 {[%clk 0:01:34.2]} 32... Qd5 {[%clk 0:01:32.1]}
33. Rc7 {[%clk 0:01:25.6]} 33... Bc5 {[%clk 0:01:23.7]} 34. Qd1 {[%clk
0:01:19.5]} 34... Bb6 {[%clk 0:01:18.5]} 35. Rc1 {[%clk 0:00:55.1]} 35... h4
{[%clk 0:01:16.6]} 36. gxh4 {[%clk 0:00:51.1]} 36... Re4 {[%clk 0:01:12.7]} 37.
f3 {[%clk 0:00:45.2]} 37... Rxh4 {[%clk 0:01:07.1]} 38. a4 {[%clk 0:00:45.6]}
38... g5 {[%clk 0:00:27.7]} 39. Ba3+ {[%clk 0:00:40.4]} 39... Kf7 {[%clk
0:00:26.8]} 40. Bc5 {[%clk 0:00:41.1]} 40... Bc7 {[%clk 0:00:26.6]} 41. Rc2
{[%clk 0:00:39.7]} 41... g4 {[%clk 0:00:26.4]} 42. Rf2 {[%clk 0:00:33.3]} 42...
gxf3 {[%clk 0:00:25.1]} 43. Qxf3 {[%clk 0:00:30.9]} 43... Bxh2+ {[%clk
0:00:23.8]} 44. Kf1 {[%clk 0:00:29]} 44... Qc4+ {[%clk 0:00:20.6]} 45. Kg2
{[%clk 0:00:29.5]} 45... f4 {[%clk 0:00:18.2]} 46. Qb7+ {[%clk 0:00:25.2]} 46...
Kg6 {[%clk 0:00:17.3]} 47. Qc6+ {[%clk 0:00:24.7]} 47... Kf5 {[%clk 0:00:16.4]}
48. Qd7+ {[%clk 0:00:21.5]} 48... Ke4 {[%clk 0:00:15.4]} 49. Qe8+ {[%clk
0:00:19.1]} 49... Kf5 {[%clk 0:00:14.1]} 50. Qe5+ {[%clk 0:00:18.9]} 50... Kg4
{[%clk 0:00:13.7]} 51. Qg7+ {[%clk 0:00:13.9]} 51... Kh5 {[%clk 0:00:13.6]} 52.
Kf3 {[%clk 0:00:10.5]} 52... Qd3+ {[%clk 0:00:12.4]} 53. Kg2 {[%clk 0:00:09.3]}
53... Rg4+ {[%clk 0:00:11.7]} 54. Qxg4+ {[%clk 0:00:09.9]} 54... Kxg4 {[%clk
0:00:12.6]} 55. Kxh2 {[%clk 0:00:09.5]} 55... Qg3+ {[%clk 0:00:12.1]} 56. Kh1
{[%clk 0:00:10.2]} 56... Qxf2 {[%clk 0:00:12.3]} 57. b6 {[%clk 0:00:10.8]} 57...
f3 {[%clk 0:00:12.4]} 58. b7 {[%clk 0:00:11.1]} 58... Qg2# {[%clk 0:00:12.4]}
0-1

[Event "*** SCC Grand Prix: Titled Tuesday Blitz"]
[Site "Chess.com"]
[Date "2020.09.29"]
[Round "9"]
[White "SHIVACalypso"]
[Black "Piotrek1979"]
[Result "1-0"]
[WhiteElo "2366"]
[BlackElo "2447"]
[TimeControl "180+1"]
[EndTime "11:44:41 PDT"]
[Termination "SHIVACalypso won on time"]

1. Nf3 {[%clk 0:03:00.9]} 1... c5 {[%clk 0:02:57]} 2. c4 {[%clk 0:03:01]} 2...
Nc6 {[%clk 0:02:54.8]} 3. g3 {[%clk 0:03:01.2]} 3... g6 {[%clk 0:02:53.2]} 4.
Bg2 {[%clk 0:03:01.6]} 4... Bg7 {[%clk 0:02:53.7]} 5. O-O {[%clk 0:03:02]} 5...
d6 {[%clk 0:02:53.2]} 6. Nc3 {[%clk 0:03:01.8]} 6... Nf6 {[%clk 0:02:49.2]} 7.
Ne1 {[%clk 0:03:01.4]} 7... O-O {[%clk 0:02:46.5]} 8. Nc2 {[%clk 0:02:59.4]}
8... Bd7 {[%clk 0:02:37.3]} 9. Ne3 {[%clk 0:02:58]} 9... Rb8 {[%clk 0:02:33.4]}
10. d3 {[%clk 0:02:52.5]} 10... a6 {[%clk 0:02:33.4]} 11. a4 {[%clk 0:02:48.4]}
11... e6 {[%clk 0:02:28.4]} 12. Bd2 {[%clk 0:02:42.8]} 12... Nd4 {[%clk
0:02:24.9]} 13. a5 {[%clk 0:02:33.4]} 13... Bc6 {[%clk 0:02:24.3]} 14. Ra3
{[%clk 0:02:26.1]} 14... Bxg2 {[%clk 0:02:20.8]} 15. Nxg2 {[%clk 0:02:24.3]}
15... d5 {[%clk 0:02:21.7]} 16. Na4 {[%clk 0:02:18.8]} 16... Nd7 {[%clk
0:02:08.3]} 17. Ne3 {[%clk 0:02:09.4]} 17... dxc4 {[%clk 0:01:56.1]} 18. Nxc4
{[%clk 0:02:07.6]} 18... Qc7 {[%clk 0:01:44.2]} 19. b4 {[%clk 0:01:56.4]} 19...
Rfd8 {[%clk 0:01:29.8]} 20. bxc5 {[%clk 0:01:21.1]} 20... Nxc5 {[%clk
0:01:28.6]} 21. Nxc5 {[%clk 0:01:20.3]} 21... Qxc5 {[%clk 0:01:29.5]} 22. Be3
{[%clk 0:01:17.8]} 22... Qc6 {[%clk 0:01:26.3]} 23. Bxd4 {[%clk 0:01:15.9]}
23... Bxd4 {[%clk 0:01:24.9]} 24. Qa4 {[%clk 0:01:08.9]} 24... Qd5 {[%clk
0:01:19.4]} 25. Rb3 {[%clk 0:01:05.5]} 25... Qh5 {[%clk 0:01:14.6]} 26. e3
{[%clk 0:00:56.7]} 26... Bf6 {[%clk 0:01:06.9]} 27. d4 {[%clk 0:00:54.3]} 27...
Qh3 {[%clk 0:01:04.4]} 28. Rfb1 {[%clk 0:00:48.5]} 28... Qf5 {[%clk 0:00:26.3]}
29. Rxb7 {[%clk 0:00:34.6]} 29... Qxb1+ {[%clk 0:00:25.8]} 30. Rxb1 {[%clk
0:00:35.5]} 30... Rxb1+ {[%clk 0:00:25.5]} 31. Kg2 {[%clk 0:00:36]} 31... Rb5
{[%clk 0:00:26.1]} 32. Na3 {[%clk 0:00:27.3]} 32... Rbd5 {[%clk 0:00:26]} 33.
Nc2 {[%clk 0:00:22.8]} 33... Be7 {[%clk 0:00:22.9]} 34. Qc6 {[%clk 0:00:17.7]}
34... R5d6 {[%clk 0:00:21.5]} 35. Qc4 {[%clk 0:00:15.6]} 35... Ra8 {[%clk
0:00:13.9]} 36. Nb4 {[%clk 0:00:15.8]} 36... Rdd8 {[%clk 0:00:12.3]} 37. Nd3
{[%clk 0:00:15.9]} 37... Rdc8 {[%clk 0:00:12.4]} 38. Nc5 {[%clk 0:00:15.4]}
38... Bxc5 {[%clk 0:00:11.4]} 39. dxc5 {[%clk 0:00:16.3]} 39... Rc6 {[%clk
0:00:11.8]} 40. h4 {[%clk 0:00:12.1]} 40... Rac8 {[%clk 0:00:12.7]} 41. Qb4
{[%clk 0:00:11.6]} 41... h5 {[%clk 0:00:12.4]} 42. Qb7 {[%clk 0:00:10.5]} 42...
R8c7 {[%clk 0:00:12.4]} 43. Qb8+ {[%clk 0:00:10.5]} 43... Kg7 {[%clk 0:00:13.3]}
44. Qb2+ {[%clk 0:00:07.5]} 44... Kh7 {[%clk 0:00:10.2]} 45. Qf6 {[%clk
0:00:04.3]} 45... Rxc5 {[%clk 0:00:09.9]} 46. f3 {[%clk 0:00:03.2]} 46... Rf5
{[%clk 0:00:08.6]} 47. Qd4 {[%clk 0:00:02.5]} 47... Rc2+ {[%clk 0:00:07.7]} 48.
Kh3 {[%clk 0:00:02.8]} 48... Rxf3 {[%clk 0:00:07.8]} 49. Qe4 {[%clk 0:00:03.2]}
49... Rff2 {[%clk 0:00:05.3]} 50. g4 {[%clk 0:00:03.5]} 1-0

[Event "*** SCC Grand Prix: Titled Tuesday Blitz"]
[Site "Chess.com"]
[Date "2020.09.29"]
[Round "9"]
[White "norwaytoadog"]
[Black "Gerodot71"]
[Result "0-1"]
[WhiteElo "2328"]
[BlackElo "2457"]
[TimeControl "180+1"]
[EndTime "11:44:41 PDT"]
[Termination "Gerodot71 won on time"]

1. e4 {[%clk 0:02:59.6]} 1... e5 {[%clk 0:02:59.3]} 2. Nf3 {[%clk 0:03:00]} 2...
Nc6 {[%clk 0:02:58.2]} 3. Bb5 {[%clk 0:03:00.1]} 3... a6 {[%clk 0:02:57.6]} 4.
Ba4 {[%clk 0:03:00.6]} 4... Nf6 {[%clk 0:02:57.4]} 5. O-O {[%clk 0:03:00.6]}
5... Be7 {[%clk 0:02:55.9]} 6. Re1 {[%clk 0:03:00.8]} 6... b5 {[%clk 0:02:55.7]}
7. Bb3 {[%clk 0:03:01.3]} 7... d6 {[%clk 0:02:55.7]} 8. c3 {[%clk 0:03:01.2]}
8... O-O {[%clk 0:02:55]} 9. h3 {[%clk 0:03:01]} 9... Nb8 {[%clk 0:02:54.8]} 10.
d4 {[%clk 0:03:01.3]} 10... Nbd7 {[%clk 0:02:54.9]} 11. Nbd2 {[%clk 0:03:00.6]}
11... Bb7 {[%clk 0:02:54.3]} 12. Bc2 {[%clk 0:03:00.4]} 12... Re8 {[%clk
0:02:54.5]} 13. Nf1 {[%clk 0:03:00.5]} 13... Bf8 {[%clk 0:02:54.4]} 14. Ng3
{[%clk 0:03:00.7]} 14... g6 {[%clk 0:02:54.1]} 15. a4 {[%clk 0:03:00.9]} 15...
Nb6 {[%clk 0:02:49.7]} 16. a5 {[%clk 0:02:58]} 16... Nbd7 {[%clk 0:02:48.3]} 17.
d5 {[%clk 0:02:56.6]} 17... c6 {[%clk 0:02:46.5]} 18. dxc6 {[%clk 0:02:50.1]}
18... Bxc6 {[%clk 0:02:47.4]} 19. b4 {[%clk 0:02:49.4]} 19... d5 {[%clk
0:02:39.6]} 20. Bb3 {[%clk 0:02:41.7]} 20... dxe4 {[%clk 0:02:22.1]} 21. Ng5
{[%clk 0:02:35.9]} 21... Re7 {[%clk 0:02:22.3]} 22. N5xe4 {[%clk 0:02:28.4]}
22... Nxe4 {[%clk 0:02:19.1]} 23. Rxe4 {[%clk 0:02:10.4]} 23... Bxe4 {[%clk
0:01:50.7]} 24. Nxe4 {[%clk 0:02:10.3]} 24... h6 {[%clk 0:01:48.7]} 25. Ra2
{[%clk 0:01:54]} 25... Bg7 {[%clk 0:01:06.4]} 26. Rd2 {[%clk 0:01:36.7]} 26...
Qc7 {[%clk 0:00:59.3]} 27. Rd6 {[%clk 0:01:22.8]} 27... Kh7 {[%clk 0:00:54.9]}
28. Qg4 {[%clk 0:00:34.3]} 28... Nf8 {[%clk 0:00:45.4]} 29. Be3 {[%clk
0:00:25.6]} 29... f5 {[%clk 0:00:34.9]} 30. Qh4 {[%clk 0:00:12.6]} 30... fxe4
{[%clk 0:00:31.8]} 31. Bc5 {[%clk 0:00:11.4]} 31... Rd7 {[%clk 0:00:28.1]} 32.
Rf6 {[%clk 0:00:07.2]} 32... Bxf6 {[%clk 0:00:26.6]} 33. Qxf6 {[%clk 0:00:07.6]}
33... Qd8 {[%clk 0:00:23.9]} 34. Qxe5 {[%clk 0:00:07.2]} 34... Rd1+ {[%clk
0:00:20.4]} 35. Kh2 {[%clk 0:00:06.9]} 35... Rc8 {[%clk 0:00:18]} 36. Bd4 {[%clk
0:00:05.8]} 36... Qc7 {[%clk 0:00:17.6]} 37. Bxd1 {[%clk 0:00:03.6]} 37... Qxe5+
{[%clk 0:00:16.7]} 38. Bxe5 {[%clk 0:00:04.1]} 38... Ne6 {[%clk 0:00:17.6]} 39.
Be2 {[%clk 0:00:03.4]} 39... g5 {[%clk 0:00:16.1]} 40. Kg3 {[%clk 0:00:03.4]}
40... Kg6 {[%clk 0:00:16.5]} 41. Bg4 {[%clk 0:00:03.6]} 41... Re8 {[%clk
0:00:14.6]} 42. Bd6 {[%clk 0:00:03.1]} 42... h5 {[%clk 0:00:14.5]} 43. Be2
{[%clk 0:00:02.7]} 43... Kf5 {[%clk 0:00:14.6]} 44. c4 {[%clk 0:00:02.6]} 44...
bxc4 {[%clk 0:00:12.4]} 45. Bxc4 {[%clk 0:00:02.9]} 45... Rd8 {[%clk 0:00:12.3]}
46. Be7 {[%clk 0:00:02.5]} 46... Ra8 {[%clk 0:00:09.9]} 47. Bd6 {[%clk
0:00:02.4]} 47... Nf4 {[%clk 0:00:08.8]} 0-1

[Event "*** SCC Grand Prix: Titled Tuesday Blitz"]
[Site "Chess.com"]
[Date "2020.09.29"]
[Round "9"]
[White "Grineva_Marianna"]
[Black "Ural_bogatyr"]
[Result "0-1"]
[WhiteElo "2249"]
[BlackElo "2369"]
[TimeControl "180+1"]
[EndTime "11:44:41 PDT"]
[Termination "Ural_bogatyr won by resignation"]

1. e4 {[%clk 0:03:00.9]} 1... e5 {[%clk 0:02:58.9]} 2. Nf3 {[%clk 0:03:00.7]}
2... Nc6 {[%clk 0:02:59.1]} 3. Bb5 {[%clk 0:02:59.8]} 3... Bc5 {[%clk
0:02:59.4]} 4. O-O {[%clk 0:02:55.6]} 4... Nf6 {[%clk 0:02:59.7]} 5. Qe2 {[%clk
0:02:39.7]} 5... d6 {[%clk 0:02:56.8]} 6. h3 {[%clk 0:02:37.5]} 6... O-O {[%clk
0:02:55.7]} 7. c3 {[%clk 0:02:33.8]} 7... Bb6 {[%clk 0:02:45.4]} 8. d3 {[%clk
0:02:27.8]} 8... Ne7 {[%clk 0:02:44.6]} 9. Be3 {[%clk 0:02:22.6]} 9... c6 {[%clk
0:02:43.1]} 10. Ba4 {[%clk 0:02:21.6]} 10... Bc7 {[%clk 0:02:43.2]} 11. Nbd2
{[%clk 0:02:20.5]} 11... d5 {[%clk 0:02:38.8]} 12. Rad1 {[%clk 0:02:09.8]} 12...
Ng6 {[%clk 0:02:36.6]} 13. Rfe1 {[%clk 0:01:50.9]} 13... Nh5 {[%clk 0:02:26.7]}
14. exd5 {[%clk 0:01:32.9]} 14... cxd5 {[%clk 0:02:08.7]} 15. Bc5 {[%clk
0:01:30.5]} 15... Nhf4 {[%clk 0:02:05.7]} 16. Qf1 {[%clk 0:01:28.6]} 16... Bd6
{[%clk 0:02:00.8]} 17. Bxd6 {[%clk 0:01:01.1]} 17... Qxd6 {[%clk 0:02:01.7]} 18.
c4 {[%clk 0:00:56.7]} 18... Be6 {[%clk 0:01:51.8]} 19. cxd5 {[%clk 0:00:52.6]}
19... Bxd5 {[%clk 0:01:52.6]} 20. Ne4 {[%clk 0:00:48.9]} 20... Qb4 {[%clk
0:01:46.6]} 21. Bb3 {[%clk 0:00:28.6]} 21... Bxb3 {[%clk 0:01:40.6]} 22. axb3
{[%clk 0:00:29.5]} 22... Qxb3 {[%clk 0:01:40.7]} 23. g3 {[%clk 0:00:28.3]} 23...
Nd5 {[%clk 0:01:37.4]} 24. Nc5 {[%clk 0:00:27.6]} 24... Qb5 {[%clk 0:01:28.5]}
25. d4 {[%clk 0:00:18.6]} 25... Qxf1+ {[%clk 0:01:27.9]} 26. Kxf1 {[%clk
0:00:19.5]} 26... exd4 {[%clk 0:01:27]} 27. Rxd4 {[%clk 0:00:20]} 27... Nf6
{[%clk 0:01:25.4]} 28. Nxb7 {[%clk 0:00:19.2]} 28... Rab8 {[%clk 0:01:24]} 29.
Rb4 {[%clk 0:00:14.4]} 29... a5 {[%clk 0:01:11.8]} 30. Rb5 {[%clk 0:00:14.1]}
30... Rfc8 {[%clk 0:01:06.8]} 31. Nd6 {[%clk 0:00:13.1]} 31... Rxb5 {[%clk
0:01:06.5]} 32. Nxb5 {[%clk 0:00:14]} 32... Rb8 {[%clk 0:01:06.2]} 33. Nfd4
{[%clk 0:00:14.2]} 33... h6 {[%clk 0:00:58]} 34. Ra1 {[%clk 0:00:14.4]} 34...
Ra8 {[%clk 0:00:51.6]} 35. Ra4 {[%clk 0:00:14.3]} 35... Nd5 {[%clk 0:00:50.3]}
36. Nc6 {[%clk 0:00:13.9]} 36... Nge7 {[%clk 0:00:44.2]} 37. Rxa5 {[%clk
0:00:12.8]} 37... Rc8 {[%clk 0:00:42.5]} 38. Nxe7+ {[%clk 0:00:12.2]} 38... Nxe7
{[%clk 0:00:43.4]} 39. Nc3 {[%clk 0:00:12.1]} 39... Rb8 {[%clk 0:00:41.8]} 40.
Rb5 {[%clk 0:00:12.5]} 40... Rc8 {[%clk 0:00:42.2]} 41. Ke2 {[%clk 0:00:10.8]}
41... Kf8 {[%clk 0:00:41.3]} 42. Rb7 {[%clk 0:00:10.5]} 42... Nc6 {[%clk
0:00:39.7]} 43. Kd3 {[%clk 0:00:09.9]} 43... Ne5+ {[%clk 0:00:39.5]} 44. Ke4
{[%clk 0:00:10.1]} 44... Nc4 {[%clk 0:00:39.4]} 45. Nd5 {[%clk 0:00:09.5]} 45...
Nd6+ {[%clk 0:00:39.3]} 46. Kd4 {[%clk 0:00:09.4]} 46... Nxb7 {[%clk 0:00:40.2]}
47. b4 {[%clk 0:00:09]} 47... Nd6 {[%clk 0:00:39.4]} 48. Nc3 {[%clk 0:00:07]}
48... Rc4+ {[%clk 0:00:37.6]} 49. Kd5 {[%clk 0:00:03.5]} 49... Rxc3 {[%clk
0:00:37.2]} 50. Kxd6 {[%clk 0:00:03.8]} 50... Rb3 {[%clk 0:00:33.1]} 51. Kc5
{[%clk 0:00:04.7]} 51... Ke7 {[%clk 0:00:33.2]} 52. b5 {[%clk 0:00:05.3]} 52...
Kd7 {[%clk 0:00:33.6]} 53. Kb6 {[%clk 0:00:05.7]} 53... Kc8 {[%clk 0:00:31.7]}
54. Ka6 {[%clk 0:00:04.2]} 54... Kc7 {[%clk 0:00:29.6]} 55. Ka5 {[%clk 0:00:04]}
55... Rf3 {[%clk 0:00:27.6]} 56. b6+ {[%clk 0:00:04]} 56... Kb7 {[%clk
0:00:27.4]} 0-1

[Event "*** SCC Grand Prix: Titled Tuesday Blitz"]
[Site "Chess.com"]
[Date "2020.09.29"]
[Round "9"]
[White "Pultis"]
[Black "Zhigalko_Sergei"]
[Result "1-0"]
[WhiteElo "2781"]
[BlackElo "2945"]
[TimeControl "180+1"]
[EndTime "11:44:42 PDT"]
[Termination "Pultis won on time"]

1. Nf3 {[%clk 0:03:00.9]} 1... d5 {[%clk 0:03:00.3]} 2. e3 {[%clk 0:03:01]} 2...
Nf6 {[%clk 0:02:56.7]} 3. c4 {[%clk 0:03:01.1]} 3... e6 {[%clk 0:02:56.5]} 4. b3
{[%clk 0:03:00.6]} 4... b6 {[%clk 0:02:56.9]} 5. Bb2 {[%clk 0:03:00.4]} 5... Bb7
{[%clk 0:02:57.5]} 6. Nc3 {[%clk 0:02:50.1]} 6... Bd6 {[%clk 0:02:57.4]} 7. cxd5
{[%clk 0:02:44.5]} 7... exd5 {[%clk 0:02:57.1]} 8. Rc1 {[%clk 0:02:31.8]} 8...
a6 {[%clk 0:02:56.6]} 9. d4 {[%clk 0:02:31.5]} 9... O-O {[%clk 0:02:55.5]} 10.
g3 {[%clk 0:02:32]} 10... Nbd7 {[%clk 0:02:49.2]} 11. Bg2 {[%clk 0:02:32.2]}
11... Re8 {[%clk 0:02:49.6]} 12. O-O {[%clk 0:02:32.3]} 12... c6 {[%clk
0:02:38.6]} 13. Qc2 {[%clk 0:02:28.6]} 13... Rc8 {[%clk 0:02:31.5]} 14. Rfd1
{[%clk 0:02:28.7]} 14... Nf8 {[%clk 0:02:12.1]} 15. Qb1 {[%clk 0:02:25.5]} 15...
Ne6 {[%clk 0:02:11.7]} 16. Qa1 {[%clk 0:02:22.5]} 16... a5 {[%clk 0:02:09.3]}
17. Ne5 {[%clk 0:02:17.7]} 17... Ba6 {[%clk 0:01:55.7]} 18. e4 {[%clk
0:02:07.3]} 18... Bb7 {[%clk 0:01:09.8]} 19. f4 {[%clk 0:01:46.8]} 19... Bb4
{[%clk 0:00:50.1]} 20. exd5 {[%clk 0:01:21.4]} 20... cxd5 {[%clk 0:00:48.7]} 21.
Ne2 {[%clk 0:01:21.9]} 21... Ne4 {[%clk 0:00:34.8]} 22. Bxe4 {[%clk 0:00:48.4]}
22... dxe4 {[%clk 0:00:35.1]} 23. d5 {[%clk 0:00:49.2]} 23... Rxc1 {[%clk
0:00:32.4]} 24. Nxc1 {[%clk 0:00:22.4]} 24... Bxd5 {[%clk 0:00:27.9]} 25. Ne2
{[%clk 0:00:16.3]} 25... Bc5+ {[%clk 0:00:26.4]} 26. Kf1 {[%clk 0:00:16.7]}
26... Qa8 {[%clk 0:00:26.1]} 27. Ng4 {[%clk 0:00:14.7]} 27... Bf8 {[%clk
0:00:24.3]} 28. f5 {[%clk 0:00:10.7]} 28... Ng5 {[%clk 0:00:18.3]} 29. Nf4
{[%clk 0:00:10.7]} 29... Bc6 {[%clk 0:00:13.4]} 30. Ne3 {[%clk 0:00:07.2]} 30...
Bb5+ {[%clk 0:00:12.9]} 31. Kf2 {[%clk 0:00:06.6]} 31... Bd3 {[%clk 0:00:07.4]}
32. Nh5 {[%clk 0:00:06.5]} 32... f6 {[%clk 0:00:04.5]} 33. Bxf6 {[%clk
0:00:05.7]} 33... gxf6 {[%clk 0:00:03.7]} 34. Nxf6+ {[%clk 0:00:06.6]} 34... Kf7
{[%clk 0:00:04.3]} 35. Nxe8 {[%clk 0:00:03.2]} 35... Qxe8 {[%clk 0:00:04.5]} 36.
Rc1 {[%clk 0:00:02.4]} 36... Bc5 {[%clk 0:00:05]} 37. Rxc5 {[%clk 0:00:02.9]}
37... bxc5 {[%clk 0:00:05.9]} 38. Ng4 {[%clk 0:00:03.5]} 38... Ke7 {[%clk
0:00:02.8]} 39. Qf6+ {[%clk 0:00:02.7]} 39... Kd7 {[%clk 0:00:03.5]} 40. Qxg5
{[%clk 0:00:03.6]} 40... Kc7 {[%clk 0:00:03.4]} 41. Qf4+ {[%clk 0:00:03.5]}
41... Kb7 {[%clk 0:00:03.4]} 42. f6 {[%clk 0:00:04]} 42... Qf7 {[%clk
0:00:02.1]} 43. Ne5 {[%clk 0:00:04.3]} 43... Qh5 {[%clk 0:00:02.8]} 44. g4
{[%clk 0:00:02.8]} 44... e3+ {[%clk 0:00:01.9]} 45. Kxe3 {[%clk 0:00:02.6]}
45... Qh3+ {[%clk 0:00:02.5]} 46. Qf3+ {[%clk 0:00:03.3]} 46... Qxf3+ {[%clk
0:00:02.3]} 47. Kxf3 {[%clk 0:00:04.2]} 47... Bg6 {[%clk 0:00:01.7]} 48. Nxg6
{[%clk 0:00:03.8]} 48... hxg6 {[%clk 0:00:02.6]} 49. f7 {[%clk 0:00:04.4]} 1-0

[Event "*** SCC Grand Prix: Titled Tuesday Blitz"]
[Site "Chess.com"]
[Date "2020.09.29"]
[Round "9"]
[White "francyIM"]
[Black "Artem_Sadovsky"]
[Result "1-0"]
[WhiteElo "2752"]
[BlackElo "2524"]
[TimeControl "180+1"]
[EndTime "11:44:42 PDT"]
[Termination "francyIM won on time"]

1. d4 {[%clk 0:03:00.9]} 1... g6 {[%clk 0:02:54.5]} 2. Nf3 {[%clk 0:02:58.1]}
2... Bg7 {[%clk 0:02:54.6]} 3. g3 {[%clk 0:02:55.9]} 3... d6 {[%clk 0:02:53]} 4.
Bg2 {[%clk 0:02:56.1]} 4... e5 {[%clk 0:02:50.7]} 5. O-O {[%clk 0:02:54.8]} 5...
e4 {[%clk 0:02:50.3]} 6. Nfd2 {[%clk 0:02:48.5]} 6... f5 {[%clk 0:02:48.6]} 7.
Nb3 {[%clk 0:02:43.5]} 7... Nf6 {[%clk 0:02:42.9]} 8. f3 {[%clk 0:02:43.4]} 8...
O-O {[%clk 0:02:42.7]} 9. Nc3 {[%clk 0:02:43.2]} 9... d5 {[%clk 0:02:41.7]} 10.
Bf4 {[%clk 0:02:39.4]} 10... c6 {[%clk 0:02:36.6]} 11. fxe4 {[%clk 0:02:38.4]}
11... fxe4 {[%clk 0:02:36.1]} 12. e3 {[%clk 0:02:37.7]} 12... Bg4 {[%clk
0:02:20.4]} 13. Qd2 {[%clk 0:02:35.3]} 13... Qd7 {[%clk 0:02:11.3]} 14. Be5
{[%clk 0:02:34.2]} 14... Na6 {[%clk 0:02:06.1]} 15. Rf2 {[%clk 0:02:24.1]} 15...
Bh3 {[%clk 0:02:01.3]} 16. Raf1 {[%clk 0:02:22.8]} 16... Bxg2 {[%clk 0:01:58.7]}
17. Kxg2 {[%clk 0:02:23.7]} 17... Ng4 {[%clk 0:01:52.6]} 18. Rxf8+ {[%clk
0:02:21]} 18... Rxf8 {[%clk 0:01:53.5]} 19. Bxg7 {[%clk 0:02:14.7]} 19... Rxf1
{[%clk 0:01:53.7]} 20. Kxf1 {[%clk 0:02:14.8]} 20... Qf5+ {[%clk 0:01:51.5]} 21.
Kg1 {[%clk 0:02:13.8]} 21... Kxg7 {[%clk 0:01:49.3]} 22. Nd1 {[%clk 0:02:06.7]}
22... Qf3 {[%clk 0:01:45.5]} 23. Qe1 {[%clk 0:02:06.3]} 23... Nb4 {[%clk
0:01:35.3]} 24. Nd2 {[%clk 0:02:04.2]} 24... Qf5 {[%clk 0:01:27.8]} 25. c3
{[%clk 0:02:03.2]} 25... Nd3 {[%clk 0:01:26.3]} 26. Qe2 {[%clk 0:02:03.3]} 26...
h5 {[%clk 0:01:13.2]} 27. c4 {[%clk 0:02:00.9]} 27... h4 {[%clk 0:01:00.6]} 28.
h3 {[%clk 0:01:59.4]} 28... Nf6 {[%clk 0:00:53.7]} 29. g4 {[%clk 0:01:57.6]}
29... Qe6 {[%clk 0:00:52.9]} 30. cxd5 {[%clk 0:01:54.2]} 30... cxd5 {[%clk
0:00:50.8]} 31. Nf2 {[%clk 0:01:52.2]} 31... Qd6 {[%clk 0:00:37.4]} 32. Nf1
{[%clk 0:01:49.8]} 32... g5 {[%clk 0:00:24.3]} 33. Nxd3 {[%clk 0:01:47.7]} 33...
exd3 {[%clk 0:00:24.7]} 34. Qxd3 {[%clk 0:01:47.4]} 34... Ne4 {[%clk 0:00:25.6]}
35. Qb5 {[%clk 0:01:47]} 35... b6 {[%clk 0:00:22.4]} 36. Qe2 {[%clk 0:01:42.2]}
36... Qc7 {[%clk 0:00:19.5]} 37. Kg2 {[%clk 0:01:38.6]} 37... Qc1 {[%clk
0:00:19.4]} 38. a3 {[%clk 0:01:33.2]} 38... b5 {[%clk 0:00:18.1]} 39. Kg1 {[%clk
0:01:28]} 39... a6 {[%clk 0:00:18.3]} 40. a4 {[%clk 0:01:25.5]} 40... bxa4
{[%clk 0:00:15.7]} 41. Qxa6 {[%clk 0:01:09.8]} 41... Qxb2 {[%clk 0:00:15.7]} 42.
Qa7+ {[%clk 0:01:09.1]} 42... Kf6 {[%clk 0:00:15]} 43. Qa6+ {[%clk 0:01:08.7]}
43... Ke7 {[%clk 0:00:15.3]} 44. Qa7+ {[%clk 0:01:08.8]} 44... Kd6 {[%clk
0:00:11.9]} 45. Qa6+ {[%clk 0:01:08.8]} 45... Ke7 {[%clk 0:00:09.9]} 46. Qa7+
{[%clk 0:01:08.7]} 46... Ke6 {[%clk 0:00:09.9]} 47. Qa6+ {[%clk 0:01:08.3]}
47... Nd6 {[%clk 0:00:10.5]} 48. Qxa4 {[%clk 0:01:06.5]} 48... Qe2 {[%clk
0:00:10.8]} 49. Qa8 {[%clk 0:01:00.7]} 49... Qf3 {[%clk 0:00:10.7]} 50. Qg8+
{[%clk 0:00:59.3]} 50... Nf7 {[%clk 0:00:09.8]} 51. Qg6+ {[%clk 0:00:58.3]}
51... Ke7 {[%clk 0:00:09.9]} 52. Qf5 {[%clk 0:00:53.7]} 52... Qxf5 {[%clk
0:00:05.9]} 53. gxf5 {[%clk 0:00:54.6]} 53... Kf6 {[%clk 0:00:03.5]} 54. Kf2
{[%clk 0:00:52.4]} 54... Nd6 {[%clk 0:00:02.9]} 55. Kf3 {[%clk 0:00:52.2]} 55...
Kxf5 {[%clk 0:00:03.3]} 56. Nd2 {[%clk 0:00:51.6]} 56... Kf6 {[%clk 0:00:02.6]}
57. Kg4 {[%clk 0:00:50.4]} 57... Kg6 {[%clk 0:00:02.4]} 58. Nf3 {[%clk
0:00:48.6]} 58... Nc4 {[%clk 0:00:02.1]} 59. Ne5+ {[%clk 0:00:46.3]} 59... Nxe5+
{[%clk 0:00:01.8]} 60. dxe5 {[%clk 0:00:47.2]} 1-0